[Event "9. Korbacher Open 2017"]
[Site "Korbach"]
[Date "2017.10.20"]
[Round "3"]
[White "Timar-Geng, Zoltan"]
[Black "Rubina, Tatiana"]
[Result "1-0"]
[ECO "D00"]
[WhiteElo "1859"]
[BlackElo "2022"]
[Annotator "NA RC"]
[PlyCount "85"]
[EventDate "2017.??.??"]
[EventType "swiss"]
[EventCountry "GER"]
[SourceTitle "playchess.com"]
[Source "ChessBase"]
[SourceQuality "1"]
[TimeControl "40/5400+30:1800+30"]

{[%evp 8,84,9,0,2,7,32767,0,12,0,14,20,25,18,33,50,96,100,123,77,179,129,181,200,206,152,145,135,152,53,32767,32767,32767,96,123,150,164,133,200,133,191,163,381,149,158,167,191,222,272,184,530,539,553,563,466,595,615,540,935,880,1127,1198,2922,1475,1421,1054,1697,2443,3705,11129,29967,29987,29985,29972,29969,887,29996,29997,29999]} 1. d4 {[%emt 0:00:00]} d5 {[%emt 0:00:05]} 2. Bf4 {[%emt 0:00:00]} Nf6 {[%emt 0:00:06]} 3. e3 {[%emt 0:00:00]} e6 {[%emt 0:00:04]} 4. Bd3 {[%emt 0:00:14]} Be7 {[%emt 0:00:07]} 5. Nd2 {[%emt 0:00:27] LiveBook: 19 Partien} O-O {[%emt 0:00:18]} 6. Ngf3 {[%emt 0:03:29]} Nbd7 {[%emt 0:00:37]} 7. Ne5 {[%emt 0:03:29]} c5 {[%emt 0:01:17]} 8. c3 {[%emt 0:00:07]} Qb6 {[%emt 0:01:32] D02: Damenbauernspiele} (8... b6 9. Nc6 Qe8 10. Nf3 Bb7 11. Nxe7+ Qxe7 12. Ne5 Ne4 13. Nxd7 Qxd7 14. O-O Rfd8 15. Qe2 a5 16. Rad1 {1-0 (49) Kveinys,A (2530)-Nemcova,K (2267) Cappelle-la-Grande 2014}) 9. Rb1 {[%emt 0:05:53]} Qa5 {[%emt 0:02:16]} 10. a3 {[%emt 0:10:49]} c4 {[%emt 0:01:09]} 11. Bc2 {[%emt 0:00:14]} Rd8 {[%emt 0:05:12]} 12. h4 $146 {[%emt 0:07:09]} ({Vorgänger:} 12. O-O Nf8 13. Qe2 Re8 14. h3 Bd7 15. Ndf3 h6 16. Nh2 {0-1 (35) Meyer,M (1690)-Krausser,H (1855) Puschendorf 1999}) 12... Nf8 {[%emt 0:04:30]} 13. h5 {[%emt 0:02:07]} Ne8 {[%emt 0:05:54]} (13... N8d7 $16 {keeps fighting.}) 14. Qg4 {[%emt 0:13:39]} f5 {[%emt 0:10:58]} (14... Bd6 $16 {is a better defense.}) 15. Qg3 {[%emt 0:03:27]} Bf6 {[%emt 0:01:33]} 16. Ndf3 {[%emt 0:01:23]} Bd7 {[%emt 0:00:52]} 17. Nxd7 {[%emt 0:02:46]} Rxd7 {[%emt 0:00:46]} 18. Ne5 {[%emt 0:01:58]} (18. Rg1 $16) 18... Re7 {[%emt 0:00:30]} 19. f3 {[%emt 0:05:25]} Rc8 {[%emt 0:01:35]} 20. Qh3 {[%emt 0:03:56]} Qd8 {[%emt 0:03:31]} 21. g4 {[%emt 0:01:22]} fxg4 {[%emt 0:00:56]} 22. Qxg4 {[%emt 0:00:33]} b5 {[%emt 0:06:23]} (22... Bxe5 $16 23. Bxe5 (23. dxe5 Qb6 $16) 23... Rf7) 23. Ke2 {[%emt 0:03:00]} a5 {[%emt 0:01:31]} 24. Rbg1 {[%emt 0:01:46]} b4 {[%emt 0:00:35] [#]} (24... Bxe5 $142 25. Bxe5 (25. dxe5 Qb6 $14) 25... b4) 25. Qh3 $2 {[%emt 0:03:50]} (25. h6 $1 $18 Bxe5 26. dxe5 (26. Bxe5 g6 $18)) 25... bxc3 {[%emt 0:00:35]} 26. bxc3 {[%emt 0:00:23]} Qb6 {[%emt 0:00:59]} 27. Rb1 {[%emt 0:01:10]} Qa7 {[%emt 0:00:09]} 28. Rhg1 {[%emt 0:00:39]} Rd8 $2 {[%emt 0:04:35]} (28... Bxe5 29. Bxe5 Rf7) 29. Nc6 {[%emt 0:03:57]} Qd7 {[%emt 0:00:46]} 30. Nxd8 {[%emt 0:01:34]} Qxd8 {[%emt 0:00:08]} 31. Rb8 {[%emt 0:00:38]} Qd7 {[%emt 0:00:41]} 32. Rgb1 {[%emt 0:01:09]} Qa7 {[%emt 0:03:46]} 33. Qg3 {[%emt 0:03:51]} Nd7 {[%emt 0:01:45]} 34. R1b7 {[%emt 0:03:31]} Qa6 {[%emt 0:00:50] [#]} 35. Rxe8+ {[%emt 0:00:36]} (35. Rxd7 $142 $1 {[%mdl 512]} Qc6 (35... Rxd7 36. Rxe8+) 36. Rxe7 Bxe7 {[#]} 37. Bxh7+ $1 {[%mdl 512]} Kxh7 38. Qg6+ Kg8 39. Be5 Bf8 40. Bxg7) 35... Rxe8 {[%emt 0:00:03]} 36. Rxd7 {[%emt 0:00:11]} Qb5 {[%emt 0:00:52]} 37. Rc7 {[%emt 0:03:00]} Qb2 {[%emt 0:00:37]} 38. Kd2 {[%emt 0:00:21]} Qxa3 {[%emt 0:00:12]} 39. Be5 {[%emt 0:00:33]} Bxe5 {[%emt 0:01:05]} 40. Qxe5 {[%emt 0:01:01]} Qf8 {[%emt 0:30:12] [#]} 41. Qg5 {[%emt 0:32:33]} (41. h6 $142 $1 Re7 (41... gxh6 42. Bxh7#) 42. hxg7) 41... Kh8 {[%emt 0:01:16] [#]} 42. h6 $1 {[%emt 0:01:10]} gxh6 {[%emt 0:00:17]} 43. Rxh7# 1-0

[Event "9. Korbacher Open 2017"]
[Site "Korbach"]
[Date "2017.10.20"]
[Round "3"]
[White "Koerber, Thomas"]
[Black "Duzy, Stefan"]
[Result "1/2-1/2"]
[ECO "A04"]
[WhiteElo "1857"]
[BlackElo "1935"]
[Annotator "NA RC"]
[PlyCount "35"]
[EventDate "2017.??.??"]
[EventType "swiss"]
[EventCountry "GER"]
[SourceTitle "playchess.com"]
[Source "ChessBase"]
[SourceQuality "1"]
[TimeControl "40/5400+30:1800+30"]

{[%evp 10,35,25,15,26,2,0,0,8,-4,9,-15,-13,2,36,-21,-13,-29,-4,0,0,0,0,0,0,0,0,-22]} 1. Nf3 {[%emt 0:00:00]} d6 {[%emt 0:00:22]} 2. d4 {[%emt 0:00:20]} Nf6 {[%emt 0:00:44]} 3. h3 {[%emt 0:01:17]} g6 {[%emt 0:01:41]} 4. c3 {[%emt 0:00:26]} Bg7 {[%emt 0:00:10]} 5. Nbd2 {[%emt 0:01:16]} Nc6 {[%emt 0:04:07]} 6. e4 {[%emt 0:00:24]} O-O {[%emt 0:01:07]} 7. Be2 {[%emt 0:01:42]} e5 {[%emt 0:00:36]} 8. d5 {[%emt 0:00:32]} Ne7 {[%emt 0:00:35]} 9. O-O {[%emt 0:01:35]} Nh5 {[%emt 0:01:16]} 10. Nb3 {[%emt 0:03:13]} h6 {[%emt 0:03:14]} 11. Nh2 {[%emt 0:02:05]} Nf4 {[%emt 0:03:43]} 12. Bg4 {[%emt 0:01:53]} (12. Bxf4 $14 exf4 13. Nf3) 12... f5 {[%emt 0:00:56]} 13. Bf3 {[%emt 0:02:02]} g5 {[%emt 0:17:19]} 14. exf5 {[%emt 0:03:47]} Bxf5 {[%emt 0:01:33]} 15. Bxf4 $1 {[%emt 0:04:14]} gxf4 {[%emt 0:01:05]} 16. Re1 {[%emt 0:04:11]} Qe8 {[%emt 0:01:27]} 17. c4 {[%emt 0:02:05]} Qg6 {[%emt 0:16:02]} 18. Bg4 $11 {[%emt 0:02:55]} 1/2-1/2

[Event "9. Korbacher Open 2017"]
[Site "Korbach"]
[Date "2017.10.20"]
[Round "3"]
[White "Forgach, Andreas"]
[Black "Simukov, Erik"]
[Result "1/2-1/2"]
[ECO "C77"]
[WhiteElo "1851"]
[BlackElo "1621"]
[Annotator "NA RC"]
[PlyCount "200"]
[EventDate "2017.??.??"]
[EventType "swiss"]
[EventCountry "GER"]
[SourceTitle "playchess.com"]
[Source "ChessBase"]
[SourceQuality "1"]
[TimeControl "40/5400+30:1800+30"]

{[%evp 8,200,23,4,32767,0,9,-10,0,-10,11,11,0,10,32,32,46,36,82,42,155,119,114,127,155,170,237,215,244,242,241,135,154,36,32767,32767,32767,79,87,88,85,76,75,72,75,75,82,67,77,68,73,64,66,52,51,52,62,49,62,50,72,54,84,74,86,89,87,89,133,85,89,82,83,77,89,85,82,85,83,37,83,95,110,77,81,79,198,219,220,226,300,303,308,322,290,310,266,302,32767,344,32767,463,495,379,777,386,32767,32767,315,418,401,545,474,910,32767,32767,243,32767,293,32767,32767,177,158,227,156,154,164,1210,32767,1137,32767,366,971,32767,32767,281,32767,106,32767,32767,312,591,32767,243,32767,32767,32767,747,217,312,1294,1335,983,2664,1221,909,1633,5095,1393,209,205,283,7872,2057,375,8097,3046,29963,9853,4017,8763,718,5065,0,1097,0,12314,122,176,122,108,162,5065,72,73,61,73,0,72,32767,1750,61,72,64,61]} 1. e4 {[%emt 0:00:00]} e5 {[%emt 0:00:12]} 2. Nf3 {[%emt 0:00:10]} Nc6 {[%emt 0:00:37]} 3. Bb5 {[%emt 0:00:28]} a6 {[%emt 0:01:20]} 4. Ba4 {[%emt 0:00:42]} Nf6 {[%emt 0:00:28]} 5. d4 {[%emt 0:02:28]} exd4 {[%emt 0:01:10]} 6. O-O {[%emt 0:02:00]} Be7 {[%emt 0:02:00]} 7. e5 {[%emt 0:04:57]} Ne4 {[%emt 0:01:38]} 8. Nxd4 {[%emt 0:08:03]} Nxd4 {[%emt 0:00:22]} 9. Qxd4 {[%emt 0:00:30]} Nc5 {[%emt 0:00:07]} 10. Nc3 {[%emt 0:05:09]} Nxa4 {[%emt 0:00:10]} 11. Qxa4 {[%emt 0:00:13]} O-O {[%emt 0:00:30]} 12. Bf4 {[%emt 0:03:15]} Bg5 {[%emt 0:04:40]} 13. Bg3 {[%emt 0:01:02]} f6 {[%emt 0:07:46]} (13... d6 $14) 14. exf6 {[%emt 0:04:06]} Bxf6 {[%emt 0:03:21]} 15. Qc4+ {[%emt 0:02:05]} Kh8 {[%emt 0:00:07]} 16. Bxc7 {[%emt 0:03:07]} Qe8 {[%emt 0:00:10]} (16... Qe7 {might work better.}) 17. Bd6 {[%emt 0:02:27]} Rg8 {[%emt 0:02:12]} 18. Rae1 {[%emt 0:09:50]} Qg6 {[%emt 0:01:00]} 19. Nd5 {[%emt 0:04:22]} b5 {[%emt 0:03:15]} 20. Qd3 {[%emt 0:16:39]} (20. Qc7 $16) 20... Qxd3 {[%emt 0:01:56]} 21. cxd3 {[%emt 0:00:02]} Bb7 {[%emt 0:00:26]} 22. Nxf6 {[%emt 0:04:21]} gxf6 {[%emt 0:00:03]} 23. f3 {[%emt 0:01:20]} Rac8 {[%emt 0:01:27]} 24. Re2 {[%emt 0:12:04]} Rce8 {[%emt 0:02:14]} 25. Rxe8 {[%emt 0:02:52]} Rxe8 {[%emt 0:00:06]} 26. Kf2 {[%emt 0:01:03]} Re6 {[%emt 0:00:19]} 27. Bg3 {[%emt 0:00:36]} Kg8 {[%emt 0:00:48]} 28. Re1 {[%emt 0:00:47]} Kf7 {[%emt 0:01:24]} 29. Rxe6 {[%emt 0:01:39]} dxe6 {[%emt 0:01:34]} 30. d4 {[%emt 0:01:38]} Bd5 {[%emt 0:00:57]} 31. b3 {[%emt 0:00:47]} Ke7 {[%emt 0:04:02]} 32. Ke3 {[%emt 0:00:16]} Kd7 {[%emt 0:00:22]} 33. Kd3 {[%emt 0:00:19]} Kc6 {[%emt 0:00:23]} 34. Kc3 {[%emt 0:03:07]} Kb6 {[%emt 0:02:15]} 35. Bh4 {[%emt 0:01:33]} f5 {[%emt 0:00:10]} 36. Bd8+ {[%emt 0:00:31]} Kc6 {[%emt 0:00:05]} 37. Kb4 {[%emt 0:01:05]} Kd6 {[%emt 0:01:40]} 38. Bf6 {[%emt 0:00:30]} Kc6 {[%emt 0:01:23]} 39. Ka5 {[%emt 0:00:17]} Kb7 {[%emt 0:00:19]} 40. Be5 {[%emt 0:01:27]} Ka7 {[%emt 0:30:29]} 41. Bd6 {[%emt 0:30:35]} Kb7 {[%emt 0:00:24]} 42. Kb4 {[%emt 0:00:50]} Kc6 {[%emt 0:00:35]} 43. Bc5 {[%emt 0:00:42]} Kc7 {[%emt 0:00:15]} 44. Ka5 {[%emt 0:00:57]} Kb7 {[%emt 0:00:15]} 45. Bb6 {[%emt 0:00:00]} Bc6 {[%emt 0:00:00]} 46. Bd8 {[%emt 0:00:00]} Ka7 {[%emt 0:00:00]} (46... Bd7 $16) 47. Kb4 {[%emt 0:00:00]} Kb7 {[%emt 0:00:00]} 48. Kc5 {[%emt 0:00:00]} Bd5 {[%emt 0:00:00]} 49. Kd6 {[%emt 0:00:00]} Kc8 {[%emt 0:00:00]} 50. Ba5 {[%emt 0:00:00]} Kb7 {[%emt 0:00:00]} 51. Ke5 {[%emt 0:00:00]} Kc6 {[%emt 0:00:00]} 52. Kf6 {[%emt 0:00:00]} Kd7 {[%emt 0:00:00]} 53. Kg5 {[%emt 0:00:00]} Ke8 {[%emt 0:00:00]} 54. Kh6 {[%emt 0:00:00]} Kf7 {[%emt 0:00:00]} 55. Kxh7 {[%emt 0:00:00]} Bc6 {[%emt 0:00:00]} 56. Kh6 {[%emt 0:00:00]} (56. g4 $142) 56... Be8 {[%emt 0:00:00]} 57. Kg5 {[%emt 0:00:00]} Kg7 {[%emt 0:00:00]} 58. h4 {[%emt 0:00:00]} Bf7 {[%emt 0:00:00]} 59. h5 {[%emt 0:00:00]} Bg8 {[%emt 0:00:00]} 60. Bc3 {[%emt 0:00:00]} Kf7 {[%emt 0:02:30]} 61. h6 {[%emt 0:00:00]} Bh7 {[%emt 0:00:25]} 62. f4 {[%emt 0:00:00]} Bg6 {[%emt 0:01:36]} 63. Bb4 {[%emt 0:00:00]} Bh7 {[%emt 0:00:10]} 64. Bd6 {[%emt 0:00:00]} Bg6 {[%emt 0:00:07]} 65. a4 {[%emt 0:00:00]} (65. Bf8 $142 Bh7 66. Bb4) 65... bxa4 {[%emt 0:00:09] [#]} 66. bxa4 {[%emt 0:00:00]} (66. h7 $1 $18 {[%cal Rh7h8]} Bxh7 67. bxa4) 66... Bh7 {[%emt 0:00:06]} 67. a5 {[%emt 0:00:00]} Bg6 {[%emt 0:00:04]} 68. Be5 {[%emt 0:00:00]} Bh7 {[%emt 0:00:06]} 69. Bg7 {[%emt 0:00:09]} Bg6 {[%emt 0:00:04]} 70. Kh4 {[%emt 0:00:32]} Bh7 {[%emt 0:00:16]} 71. Kg3 {[%emt 0:00:13]} Bg6 {[%emt 0:00:21]} 72. Kf2 $2 {[%emt 0:00:04]} (72. Be5 $18 {is the precise move to win.} Bh7 73. Kh4) 72... Ke7 {[%emt 0:00:20]} 73. Ke3 {[%emt 0:00:42]} Kd6 {[%emt 0:00:32]} 74. Be5+ {[%emt 0:00:29]} Kc6 {[%emt 0:00:45]} 75. Bf6 {[%emt 0:00:29]} Bh7 {[%emt 0:00:59]} 76. Kf3 {[%emt 0:01:23]} Kd7 {[%emt 0:00:23]} 77. g3 {[%emt 0:02:52]} Bg6 {[%emt 0:00:26]} (77... Kc6 $142 78. Kg2 Kd5) 78. g4 $2 {[%emt 0:00:46]} (78. Be5 Ke7 79. g4) 78... fxg4+ $2 {[%emt 0:00:04]} (78... Ke8 79. g5 Kd7) 79. Kxg4 {[%emt 0:00:14]} Ke8 {[%emt 0:00:10]} 80. Kg5 {[%emt 0:00:25]} Kf7 {[%emt 0:00:11]} 81. Bg7 {[%emt 0:00:26]} Be4 {[%emt 0:01:20]} 82. Be5 {[%emt 0:00:29]} Bh7 {[%emt 0:00:23]} 83. d5 {[%emt 0:02:29]} exd5 {[%emt 0:00:04]} 84. f5 {[%emt 0:00:12]} Bg8 {[%emt 0:00:06]} 85. Bd4 {[%emt 0:00:43]} Bh7 {[%emt 0:00:52]} 86. Kf4 {[%emt 0:00:32]} Bg8 {[%emt 0:01:04]} 87. Ke5 {[%emt 0:00:20]} Bh7 {[%emt 0:00:47]} 88. Bc5 $2 {[%emt 0:00:32]} Bg8 {[%emt 0:00:39]} 89. Bb6 $2 {[%emt 0:01:59]} (89. Kxd5 Kf6+ 90. Ke4 Bh7 $16) 89... Bh7 {[%emt 0:00:15]} 90. Bc5 {[%emt 0:00:48]} (90. Bd4 {mates} Ke7 91. Be3 Kf7 92. Bb6 Ke7 93. Kxd5 Kf6 $14) 90... Bg8 {[%emt 0:00:06]} 91. Bb6 {[%emt 0:01:02]} Bh7 {[%emt 0:00:07]} 92. Bd8 {[%emt 0:00:32]} d4 {[%emt 0:01:02]} 93. Bg5 {[%emt 0:00:50]} d3 {[%emt 0:00:20]} 94. Bd2 {[%emt 0:00:37]} Bg8 {[%emt 0:00:10]} 95. Ke4 {[%emt 0:01:06]} ({White has to play} 95. Kd6 $18 Bh7 96. Kc7) 95... Bh7 {[%emt 0:00:31]} 96. Bg5 {[%emt 0:00:23]} Ke8 {[%emt 0:00:38]} 97. Ke5 {[%emt 0:00:36]} (97. Be3 $14) 97... Kf7 {[%emt 0:00:08]} 98. Bd2 {[%emt 0:00:45]} Bg8 {[%emt 0:00:07]} 99. Bc3 $2 {[%emt 0:01:02]} Bh7 {[%emt 0:00:15]} 100. Ke4 {[%emt 0:00:31]} Ke8 $14 {[%emt 0:00:17]} 1/2-1/2

[Event "9. Korbacher Open 2017"]
[Site "Korbach"]
[Date "2017.10.20"]
[Round "3"]
[White "Shkolnyk, Boris"]
[Black "Hoekstra, Peter"]
[Result "0-1"]
[ECO "B06"]
[WhiteElo "1812"]
[BlackElo "2074"]
[Annotator "NA RC"]
[PlyCount "102"]
[EventDate "2017.??.??"]
[EventType "swiss"]
[EventCountry "GER"]
[SourceTitle "playchess.com"]
[Source "ChessBase"]
[SourceQuality "1"]
[TimeControl "40/5400+30:1800+30"]

{[%evp 9,102,-11,-16,-12,-26,-46,-51,-26,-33,-43,-20,-33,0,-56,-55,-51,-50,-67,241,270,256,270,247,147,203,33,55,56,50,27,87,32767,31,32767,32767,-11,32767,0,27,7,75,0,0,-79,-73,-80,-69,-75,-102,-81,-56,-55,-76,-93,-84,-89,-84,-89,0,-56,-62,-61,-64,-73,0,-130,-145,-172,-196,-185,-206,-912,32767,32767,32767,-552,-561,32767,32767,32767,32767,-323,32767,-267,32767,-780,-518,-508,-525,-815,-741,-1587,-1683,-29969,-6296]} 1. d4 {[%emt 0:00:00]} g6 {[%emt 0:00:08]} 2. e4 {[%emt 0:00:40]} Bg7 {[%emt 0:00:27]} 3. Nf3 {[%emt 0:01:06]} c5 {[%emt 0:00:06]} 4. c3 {[%emt 0:03:48]} cxd4 {[%emt 0:01:24]} 5. Nxd4 {[%emt 0:03:00] B27: Sicilian: 2 Nf3, unusual Black 2nd moves} (5. cxd4 d5 6. e5 Bg4 7. Bb5+ Nd7 8. O-O e6 9. Nbd2 Ne7 10. h3 Bxf3 11. Nxf3 a6 12. Bd3 O-O 13. h4 f6 14. exf6 Bxf6 {1-0 (37) Andreikin,D (2736)-Savchenko,B (2613) Sochi 2016}) 5... Nc6 {[%emt 0:00:23]} 6. Nxc6 {[%emt 0:00:37]} bxc6 {[%emt 0:00:05]} 7. Be3 {[%emt 0:04:04]} Nf6 {[%emt 0:01:50]} 8. f3 {[%emt 0:02:54]} O-O {[%emt 0:00:22]} 9. Nd2 {[%emt 0:04:16]} d5 {[%emt 0:00:43]} 10. Be2 {[%emt 0:06:24]} e5 {[%emt 0:04:45]} 11. Bc5 {[%emt 0:05:19]} Re8 {[%emt 0:00:09]} 12. O-O {[%emt 0:05:10]} Bh6 $146 {[%emt 0:04:53]} ({Predecessor:} 12... Nh5 13. b4 Nf4 14. Kh1 a5 15. Rg1 Ba6 16. Bxa6 Rxa6 17. bxa5 Rxa5 {0-1 (37) Zelovic,M (2006)-Merva,F (2062) Slovakia 2007}) 13. Nb3 {[%emt 0:04:11]} dxe4 $2 {[%emt 0:09:20]} (13... a5 $15 {keeps the upper hand.}) 14. Qxd8 {[%emt 0:00:48]} Rxd8 {[%emt 0:00:56] [#]} 15. Be7 $1 {[%emt 0:00:21]} exf3 {[%emt 0:01:55]} 16. gxf3 {[%emt 0:07:44]} ({Don't do} 16. Bxd8 $6 Be3+ 17. Kh1 fxe2 $16) 16... Bh3 {[%emt 0:01:01]} (16... Rd2 $16 17. Nxd2 Nd5) 17. Rfe1 {[%emt 0:02:29]} (17. Bxf6 $18 Bxf1 18. Kxf1 (18. Rxf1 Rd7 $16)) 17... Nd5 {[%emt 0:02:38]} 18. Bxd8 {[%emt 0:02:08]} Rxd8 {[%emt 0:00:48]} 19. Bf1 {[%emt 0:00:55]} Bxf1 {[%emt 0:03:38]} 20. Rxf1 {[%emt 0:01:22]} Ne3 {[%emt 0:00:26]} 21. Rf2 {[%emt 0:01:37]} Nc4 {[%emt 0:02:55]} 22. Kh1 {[%emt 0:02:22]} a5 {[%emt 0:00:58]} 23. Re1 {[%emt 0:05:53]} Bg5 {[%emt 0:03:06]} 24. Rfe2 {[%emt 0:03:56]} Bh4 {[%emt 0:09:58] [#]} (24... f5 $11 {keeps the balance.}) 25. Rf1 {[%emt 0:00:15]} (25. Ra1 $1 $16 f5 26. Nc5) 25... f5 {[%emt 0:02:07]} 26. f4 {[%emt 0:01:33]} (26. Nc5 $11) 26... e4 {[%emt 0:04:07]} 27. Nd4 {[%emt 0:01:37]} Rd6 {[%emt 0:03:37]} 28. b3 {[%emt 0:03:50]} Nb6 {[%emt 0:00:24]} 29. Nc2 {[%emt 0:02:21]} Bf6 {[%emt 0:01:53]} 30. c4 $1 {[%emt 0:00:34]} Nd7 {[%emt 0:00:08]} 31. b4 {[%emt 0:03:48]} axb4 {[%emt 0:02:44]} 32. Nxb4 {[%emt 0:00:05]} Nc5 {[%emt 0:00:10]} 33. a3 {[%emt 0:02:26]} Na4 {[%emt 0:02:51]} (33... Kf7 $17) 34. Kg2 {[%emt 0:04:37]} Kf7 {[%emt 0:05:16]} 35. Rc2 {[%emt 0:01:35]} Nc5 {[%emt 0:00:25]} 36. Ra2 {[%emt 0:02:13]} Ke6 {[%emt 0:02:55]} (36... Bc3 $15) 37. Rff2 {[%emt 0:01:01]} (37. a4 $1 $11 {keeps the balance.}) 37... Bc3 {[%emt 0:00:35]} 38. Rfc2 {[%emt 0:00:44] [#]} Bxb4 $1 {[%emt 0:01:35]} 39. axb4 {[%emt 0:00:40]} Nd3 {[%emt 0:00:24]} 40. Ra5 $2 {[%emt 0:04:56]} (40. Ra1) 40... Nxb4 {[%emt 0:34:10]} 41. Rb2 {[%emt 0:31:44]} Nd3 {[%emt 0:00:15]} 42. Rb7 $2 {[%emt 0:00:48]} (42. Rb8 Nxf4+ 43. Kg3 Nh5+ 44. Kf2) 42... Nxf4+ {[%emt 0:00:22]} 43. Kg3 {[%emt 0:00:23]} Nh5+ {[%emt 0:05:44]} 44. Kf2 {[%emt 0:00:51]} Rd2+ {[%emt 0:01:14]} 45. Ke3 {[%emt 0:03:30]} Rd3+ {[%emt 0:00:14]} 46. Kf2 {[%emt 0:01:05]} f4 {[%emt 0:05:30]} 47. Rxh7 $2 {[%emt 0:00:00]} (47. Rb6 Kd6 48. Raa6 Rd2+ 49. Kg1) 47... Rd2+ {[%emt 0:00:00]} 48. Ke1 {[%emt 0:00:00]} Rxh2 {[%emt 0:00:00]} 49. Raa7 {[%emt 0:00:00]} Kf5 {[%emt 0:00:00]} 50. Ra6 {[%emt 0:00:00]} f3 {[%emt 0:00:00]} 51. Rxc6 {[%emt 0:00:00]} f2+ $19 {[%emt 0:00:00]} 0-1

[Event "9. Korbacher Open 2017"]
[Site "Korbach"]
[Date "2017.10.20"]
[Round "3"]
[White "Mak, Nico"]
[Black "Petras, Nils"]
[Result "0-1"]
[ECO "B53"]
[WhiteElo "1799"]
[BlackElo "1922"]
[Annotator "NA RC"]
[PlyCount "66"]
[EventDate "2017.??.??"]
[EventType "swiss"]
[EventCountry "GER"]
[SourceTitle "playchess.com"]
[Source "ChessBase"]
[SourceQuality "1"]
[TimeControl "40/5400+30:1800+30"]

{[%evp 8,66,25,8,24,10,4,16,16,9,29,28,33,9,16,10,42,-71,-73,-70,-62,-70,-69,-93,-95,-92,-53,-79,-60,-82,-89,-126,-117,-116,32767,32767,32767,32767,-122,-140,-122,-138,-124,-143,-154,-149,-162,-265,-167,-178,-158,-268,-155,-329,-302,-354,-386,-386,-403,-420,-393]} 1. e4 {[%emt 0:00:00]} c5 {[%emt 0:00:08]} 2. Nf3 {[%emt 0:00:00]} d6 {[%emt 0:00:05]} 3. d4 {[%emt 0:00:00]} cxd4 {[%emt 0:00:06]} 4. Qxd4 {[%emt 0:00:07]} Nc6 {[%emt 0:00:20]} 5. Bb5 {[%emt 0:00:09]} Bd7 {[%emt 0:00:44]} 6. Bxc6 {[%emt 0:00:10]} Bxc6 {[%emt 0:00:06]} 7. c4 {[%emt 0:00:14]} Nf6 {[%emt 0:02:39]} 8. Nc3 {[%emt 0:00:40]} g6 {[%emt 0:03:08]} 9. O-O {[%emt 0:02:48]} Bg7 {[%emt 0:00:11]} 10. Rd1 {[%emt 0:02:21] B53: Sizilianisch (Ungarische Variante)} (10. Qd3 O-O 11. Nd4 Ng4 12. b3 Qb6 13. Nxc6 bxc6 14. Bb2 Qa5 15. h3 Ne5 16. Qe2 Rab8 17. f4 Nd7 18. Rf3 Nc5 19. Kh1 {1-0 (60) Kamsky,G (2744)-Gareev,T (2658) Rockville 2012}) 10... O-O {[%emt 0:01:06]} 11. Qd3 {[%emt 0:00:31]} Nd7 {[%emt 0:06:22]} 12. Bg5 $146 {[%emt 0:07:04]} ({Vorgänger:} 12. Nd4 $14 {keeps the upper hand.} Nc5 13. Qc2 Bd7 14. Be3 a6 15. Rac1 Rc8 16. Qe2 Re8 17. f3 b6 {1-0 (32) Janev,E (2360)-Demirel,T (2335) Mangalia 1992}) 12... Nc5 {[%emt 0:03:02]} 13. Qe3 {[%emt 0:04:25]} Bxc3 $1 {[%emt 0:03:52]} 14. Qxc3 {[%emt 0:00:18]} Nxe4 {[%emt 0:00:06]} 15. Qd4 {[%emt 0:02:21]} Nxg5 {[%emt 0:00:37]} 16. Nxg5 {[%emt 0:00:02]} h6 {[%emt 0:05:48]} 17. Ne4 {[%emt 0:07:09]} Qa5 {[%emt 0:14:33]} 18. Rd3 {[%emt 0:06:05]} Qe5 {[%emt 0:06:59]} 19. Qxe5 {[%emt 0:10:25]} dxe5 {[%emt 0:00:08]} 20. Nc3 {[%emt 0:01:59]} Rfd8 {[%emt 0:01:59]} 21. Rad1 {[%emt 0:00:15]} Rxd3 {[%emt 0:00:09]} 22. Rxd3 {[%emt 0:00:04]} Kf8 {[%emt 0:00:22]} 23. g4 {[%emt 0:05:50]} e6 {[%emt 0:02:31]} 24. Kf1 {[%emt 0:11:07]} Ke7 {[%emt 0:07:40]} 25. b4 {[%emt 0:05:46]} f5 {[%emt 0:05:51]} 26. b5 {[%emt 0:10:59]} Be8 {[%emt 0:01:18]} 27. Re3 {[%emt 0:06:51]} (27. Nb1 $17) 27... Kf6 {[%emt 0:01:34]} ({Don't play} 27... fxg4 28. Rxe5 Rc8 29. c5 $17) 28. gxf5 {[%emt 0:03:13]} gxf5 {[%emt 0:00:16]} 29. Rf3 {[%emt 0:01:18]} (29. Nb1 $142) 29... Rc8 {[%emt 0:01:03]} ({Black should play} 29... Rd8 $19 30. Ne4+ Ke7) 30. c5 $2 {[%emt 0:02:16]} (30. Ne4+ Ke7 31. Nd2) 30... Ke7 {[%emt 0:02:06]} 31. b6 {[%emt 0:01:07]} a6 {[%emt 0:02:30]} 32. Rg3 {[%emt 0:03:19]} Rxc5 {[%emt 0:00:56]} 33. Rg7+ {[%emt 0:00:13]} Bf7 $19 {[%emt 0:00:08]} 0-1

[Event "9. Korbacher Open 2017"]
[Site "Korbach"]
[Date "2017.10.20"]
[Round "3"]
[White "Van de Griend, Johan"]
[Black "Dijkhuis, Oele"]
[Result "0-1"]
[ECO "B72"]
[WhiteElo "1797"]
[BlackElo "2035"]
[Annotator "NA RC"]
[PlyCount "28"]
[EventDate "2017.??.??"]
[EventType "swiss"]
[EventCountry "GER"]
[SourceTitle "playchess.com"]
[Source "ChessBase"]
[SourceQuality "1"]
[TimeControl "40/5400+30:1800+30"]

{[%evp 8,28,37,22,47,56,63,18,23,14,25,0,32767,-188,32767,-500,-535,-782,-824,-926,-963,-1116,-1135]} 1. e4 {[%emt 0:00:00]} c5 {[%emt 0:00:05]} 2. Nf3 {[%emt 0:00:00]} d6 {[%emt 0:00:08]} 3. d4 {[%emt 0:00:00]} cxd4 {[%emt 0:00:07]} 4. Nxd4 {[%emt 0:00:00]} Nf6 {[%emt 0:00:07]} 5. Nc3 {[%emt 0:00:01]} g6 {[%emt 0:00:07]} 6. Be3 {[%emt 0:00:06]} Bg7 {[%emt 0:00:07] LiveBook: 9516 Partien} 7. Be2 {[%emt 0:00:11]} O-O {[%emt 0:00:24]} 8. O-O {[%emt 0:00:08]} Nc6 {[%emt 0:00:16]} 9. f4 {[%emt 0:01:20]} Qb6 {[%emt 0:05:21]} 10. Nf5 $2 {[%emt 0:03:46]} (10. Qd3 $11 {and White has nothing to worry.}) 10... Qxb2 {[%emt 0:04:56]} 11. Nb5 $2 {[%emt 0:04:51]} (11. Na4 Qa3 12. c3 Nxe4 13. Nxg7 (13. Bc1 $2 Nxc3 14. Nxe7+ Nxe7 $19) 13... Nxc3 14. Nxc3 Qxc3 15. Bf2) 11... gxf5 {[%emt 0:01:06]} 12. Bc4 {[%emt 0:06:15]} (12. Rb1 $142 Qxa2 13. Ra1) 12... Ng4 {[%emt 0:00:47]} 13. Rb1 {[%emt 0:00:34]} Nxe3 {[%emt 0:04:32]} 14. Qf3 {[%emt 0:00:29]} Qxc2 $19 {[%emt 0:04:35]} 0-1